Cogmind - Beta 11.1 @@@ ROGUE MODE // 2022.05.17 @ 19:55:09 Player: Terminus Result: Destroyed by D-53 Grenadier with Mini Grenade Launcher Performance ------------- Evolutions (1) 500 Regions Visited (4) 800 Robots Destroyed (86) 430 Value Destroyed (1765) 1765 Prototype IDs (10) 200 Alien Tech Used (0) 0 Bonus (-31) -31 TOTAL SCORE: 3664 Bonus ------- High Alert Combat Kills 10 Friendly Fire -41 Cogmind --------- Core Integrity 0/400 Matter 213/300 Energy 27/100 System Corruption 0% Temperature Cool (0) Movement Core (500) Ox9 Location -9/Mines Parts ------- > --- POWER (1) -------- (None) > --- PROPULSION (3) --- Improved Hover Unit > --- UTILITY (3) ------ Improved Heat Sink Large Storage Unit Hardened Light Armor Plating > --- WEAPON (2) ------- Improved Medium Laser > --- INVENTORY (15) --- Improved Hover Unit Improved Hover Unit Combat Airjet Heat Sink Cooling System Medium Storage Unit High-capacity Matter Pod (200) Hacking Suite Mini Grenade Launcher Ripper Peak State ------------ > --- POWER ------------ Improved Ion Engine > --- PROPULSION ------- Aluminum Leg Aluminum Leg Aluminum Leg > --- UTILITY ---------- Improved Heat Sink Improved Heat Sink Large Storage Unit > --- WEAPON ----------- Particle Cannon Particle Cannon > --- INVENTORY -------- Light Ion Engine Improved Hover Unit Improved Hover Unit Improved Hover Unit Combat Airjet Heat Sink Heat Sink Medium Storage Unit High-capacity Matter Pod Hardened Light Armor Plating Hardened Light Armor Plating Improved Medium Laser Improved Medium Laser Particle Cannon Ripper [Rating: 19] Favorites ----------- Power Ion Engine Engine Ion Engine Propulsion Aluminum Leg Treads Light Treads Leg Aluminum Leg Utility Improved Heat Sink Device Improved Heat Sink Storage Large Storage Unit Protection Hardened Light Armor Plating Weapon Particle Cannon Energy Gun Small Laser Energy Cannon Particle Cannon Ballistic Gun Assault Rifle Launcher Mini Grenade Launcher Build | -11 -10 -10 -9 -9 ------- Run | Scr Mat Min Mat Min Slots Evolved 2 | . . . 2 . Power . | . . . . . Propulsion 1 | . . . 1 . Utility 1 | . . . 1 . Weapon . | . . . . . Parts Attached 58 | 6 13 3 27 9 Power 8 | 1 1 1 4 1 Engine 8 | 1 1 1 4 1 Core . | . . . . . Reactor . | . . . . . Propulsion 23 | 2 6 . 14 1 Treads 11 | 2 2 . 7 . Leg 11 | . 4 . 7 . Wheel . | . . . . . Hover 1 | . . . . 1 Flight . | . . . . . Utility 9 | 1 3 . 3 2 Device 5 | . 2 . 3 . Storage 2 | 1 1 . . . Processor . | . . . . . Hackware . | . . . . . Protection 2 | . . . . 2 Artifact . | . . . . . Weapon 18 | 2 3 2 6 5 Energy Gun 5 | 1 3 . . 1 Energy Cannon 9 | . . 2 5 2 Ballistic Gun 1 | 1 . . . . Ballistic Cannon . | . . . . . Launcher 3 | . . . 1 2 Special Weapon . | . . . . . Impact Weapon . | . . . . . Slashing Weapon . | . . . . . Piercing Weapon . | . . . . . Special Melee Weapon . | . . . . . Unidentified Prototypes . | . . . . . Parts Lost 15 | . 4 . 2 9 Power 2 | . . . . 2 Propulsion 6 | . 2 . 1 3 Utility 2 | . . . 1 1 Weapon 5 | . 2 . . 3 Highest Loss Streak 9 | . 2 . 1 9 To Critical Strikes . | . . . . . Average Slot Usage (%) 97 | . 97 100 98 79 Engine 12 | . 14 14 11 9 Treads 10 | . 6 28 9 16 Leg 19 | . 20 . 22 . Device 17 | . 12 14 21 16 Storage 12 | . 14 14 11 11 Energy Gun 9 | . 25 14 . 1 Energy Cannon 14 | . . 13 21 16 Naked Turns . | . . . . . Heaviest Build 38 | 13 28 34 38 38 Greatest Support 60 | 40 40 40 60 60 Greatest Overweight (x) 2 | . 2 . 1 . Average Overweight (x) . | . . . . . Largest Inventory Capacity 15 | 8 15 15 15 15 Average Capacity 12 | 7 13 15 15 15 Most Carried 15 | 3 15 15 15 15 Average Carried 10 | 2 9 14 14 14 Final Capacity 15 | 8 15 15 15 15 Final Carried 15 | 3 13 15 15 10 Class Distribution -------------------- 54% | Mutant 45% | Scavenger-Mutant Dominant Class ---------------- Mutant | -10/Materials Scavenger-Mutant | -10/Mines Scavenger-Mutant | -9/Materials Scavenger-Mutant | -9/Mines Resources | -11 -10 -10 -9 -9 ----------- Run | Scr Mat Min Mat Min Matter Collected 961 | 275 286 102 290 8 Remotely . | . . . . . Salvage Created 2849 | 24 631 265 1659 270 Parts 197 | 1 45 15 119 17 Haulers Intercepted 8 | . 2 . 6 . Recyclers Shooed 3 | . 1 1 1 . Parts Field Recycled . | . . . . . Retrieved Matter . | . . . . . Parts Self-Destructed . | . . . . . Prevented . | . . . . . Kills | -11 -10 -10 -9 -9 ------- Run | Scr Mat Min Mat Min Combat Hostiles Destroyed 79 | 1 11 8 35 24 Guns 15 | 1 11 3 . . Cannons 38 | . . 5 31 2 AOE 26 | . . . 4 22 Classes Destroyed 13 | 1 5 . 5 2 Worker 2 | . . . 2 . Builder 1 | . . . 1 . Tunneler 1 | . . . . 1 Hauler 8 | . 2 . 6 . Recycler 4 | . 2 1 . 1 Operator 2 | . . . 2 . Watcher 7 | . 2 . 5 . Swarmer 29 | . 5 6 14 4 Grunt 19 | . 6 2 10 1 Brawler 1 | . . . 1 . Sentry 10 | . . . 10 . Demolisher 2 | 1 . . . 1 Assembled 18 | . . . . 18 Best Kill Streak 20 | 1 4 5 6 20 Combat Bots Only 19 | 1 3 5 6 19 Max Kills in Single Turn 8 | 1 2 1 2 8 Gunslinging 1 | . 1 . . . Exploded 8 | . . . 2 8 Melee . | . . . . . Uniques/NPCs Destroyed . | . . . . . Combat | -11 -10 -10 -9 -9 -------- Run | Scr Mat Min Mat Min Damage Taken 3248 | 224 537 158 1073 1256 Core 606 | 54 130 20 188 214 Absorbed by Shields . | . . . . . Regen/Repaired (Parts) 131 | . 103 . 28 . Core Remaining (%) 48 | 78 . 18 . . Volleys Fired 174 | 5 50 15 88 16 Largest 2 | 2 2 2 2 2 Hottest 136 | 60 80 136 136 136 Shots Fired 339 | 10 100 30 174 25 Gun 122 | 10 100 10 . 2 Cannon 210 | . . 20 172 18 Launcher 7 | . . . 2 5 Special . | . . . . . Kinetic 22 | 5 17 . . . Thermal 310 | 5 83 30 172 20 Explosive 7 | . . . 2 5 Electromagnetic . | . . . . . Robot Hit Streak 12 | 4 12 7 11 3 Robot Miss Streak 7 | 2 7 2 4 4 Penetration Max . | . . . . . Secondary Targets 3 | . 3 . . . Max Gunslinging Chain 1 | . 1 . . . Shots Hit Robots 216 | 6 65 18 116 11 Core Hits 137 | 2 29 11 51 44 Critical Kills . | . . . . . Critical Parts Destroyed . | . . . . . Critical Strikes 1 | . . . . 1 Burn 1 | . . . . 1 Melee Attacks . | . . . . . Impact . | . . . . . Slashing . | . . . . . Piercing . | . . . . . Sneak Attacks . | . . . . . Combat Hostiles . | . . . . . Follow-up Attacks . | . . . . . Damage Inflicted 5635 | 77 807 366 2827 1558 Guns 979 | 77 800 68 . 34 Cannons 3017 | . . 284 2527 206 Explosions 1585 | . . . 267 1318 Melee . | . . . . . Ramming 54 | . 7 14 33 . Kinetic 215 | 54 161 . . . Thermal 3781 | 23 639 352 2527 240 Explosive 1585 | . . . 267 1318 Electromagnetic . | . . . . . Impact . | . . . . . Slashing . | . . . . . Piercing . | . . . . . Highest Corruption . | . . . . . Average Corruption . | . . . . . Corruption Purged . | . . . . . Corruption Blocked . | . . . . . Overload Shots . | . . . . . Overflow Damage 36 | . . 3 33 . Projectiles 27 | . . 3 24 . Explosions 9 | . . . 9 . Melee . | . . . . . Knockbacks . | . . . . . Impact . | . . . . . Kinetic . | . . . . . Secondary . | . . . . . Self-Inflicted Damage 73 | . . . . 73 Shots 2 | . . . . 2 Rammed 2 | . . 2 . . Targets Rammed 8 | . 1 3 4 . Kicked 5 | . 1 . 4 . Crushed 1 | . . 1 . . Highest Temperature 186 | . 159 186 36 140 Average Temperature 59 | . 82 89 10 66 Received Heat Transfer 647 | . 288 21 303 35 Siege Activations . | . . . . . Robots Corrupted . | . . . . . Combat Hostiles . | . . . . . Parts Fried . | . . . . . Impact Corruptions . | . . . . . Robots Melted . | . . . . . Combat Hostiles . | . . . . . Parts Melted 14 | . 1 1 12 . Heat Transferred 6977 | 50 1375 631 4403 518 Parts Sabotaged . | . . . . . Parts Stolen . | . . . . . Parts Stripped . | . . . . . Power Chain Reactions . | . . . . . Missiles Intercepted . | . . . . . Alert | -11 -10 -10 -9 -9 ------- Run | Scr Mat Min Mat Min Peak Influence 477 | 20 215 195 477 331 Initial 167 | . 13 . . 167 Average 140 | 2 76 76 262 262 Maximum Alert Level 2 | . 1 . 2 1 Low Security (%) 66 | 100 96 100 27 9 Level 1 28 | . 3 . 61 90 Level 2 4 | . . . 10 . Level 3 . | . . . . . Level 4 . | . . . . . Level 5 . | . . . . . High Security . | . . . . . Max Security . | . . . . . Squads Dispatched 6 | . 2 . 4 . Investigation 3 | . 1 . 2 . Extermination . | . . . . . Reinforcement 3 | . 1 . 2 . Assault . | . . . . . Garrison . | . . . . . Intercept . | . . . . . Searches Triggered . | . . . . . Construction Impeded . | . . . . . Haulers Reinforced . | . . . . . Active Scanning Responses . | . . . . . Cargo Convoy Interrupts . | . . . . . Stealth | -11 -10 -10 -9 -9 --------- Run | Scr Mat Min Mat Min Distress Signals 4 | . 3 . 1 . Communications Jammed . | . . . . . Distress Signals . | . . . . . Times Spotted 109 | 1 20 8 51 29 Peak Tracking Total 20 | 1 4 3 8 20 Tactical Retreats 3 | . 1 . 1 1 Traps | -11 -10 -10 -9 -9 ------- Run | Scr Mat Min Mat Min Traps Triggered 2 | . 1 . 1 . Indirectly . | . . . . . Trap Hack Attempts . | . . . . . Triggered . | . . . . . Disarmed . | . . . . . Reprogrammed . | . . . . . Reused . | . . . . . Traps Extracted . | . . . . . Installed . | . . . . . Triggered . | . . . . . Machines | -11 -10 -10 -9 -9 ---------- Run | Scr Mat Min Mat Min Machines Disabled . | . . . . . Max in Single Turn . | . . . . . Machines Sabotaged . | . . . . . Garrisons Compromised . | . . . . . Overloaded Fab Kills . | . . . . . Hacking | -11 -10 -10 -9 -9 --------- Run | Scr Mat Min Mat Min Machines Accessed 23 | . 9 . 14 . Terminals 17 | . 7 . 10 . Fabricators . | . . . . . Repair Stations 2 | . 1 . 1 . Recycling Units 3 | . 1 . 2 . Scanalyzers 1 | . . . 1 . Garrison Access . | . . . . . Total Hacks 85 | . 33 . 52 . Successful 46 | . 17 . 29 . Failed 38 | . 16 . 22 . Catastrophic 2 | . . . 2 . Database Lockouts 1 | . . . 1 . Manual 59 | . 23 . 36 . Terminals 73 | . 29 . 44 . Fabricators . | . . . . . Repair Stations 4 | . 2 . 2 . Recycling Units 4 | . 2 . 2 . Scanalyzers 4 | . . . 4 . Garrison Access . | . . . . . Terminal Hacks 26 | . 11 . 15 . Record 1 | . . . 1 . Robot Analysis 3 | . 2 . 1 . Prototype ID Bank 8 | . 5 . 3 . Terminal Index 2 | . 1 . 1 . Alert Level 3 | . 1 . 2 . Unreport Threat 2 | . . . 2 . Hauler Manifests 2 | . 1 . 1 . Zone Layout 5 | . 1 . 4 . Fabricator Hacks . | . . . . . Repair Station Hacks 4 | . 2 . 2 . Scan Component 2 | . 1 . 1 . Repair 2 | . 1 . 1 . Recycling Unit Hacks . | . . . . . Scanalyzer 2 | . . . 2 . Insert Component 1 | . . . 1 . Analyze 1 | . . . 1 . Garrison Access Hacks . | . . . . . Unauthorized Hacks 14 | . 4 . 10 . Terminals 11 | . 3 . 8 . Assimilate 1 | . . . 1 . Botnet 9 | . 3 . 6 . Operators 1 | . . . 1 . Fabricators . | . . . . . Repair Stations . | . . . . . Recycling Units 3 | . 1 . 2 . Tunnel 3 | . 1 . 2 . Scanalyzers . | . . . . . Garrison Access . | . . . . . Data Cores Recovered . | . . . . . Used . | . . . . . Hacking Detections 19 | . 9 . 10 . Full Trace Events . | . . . . . Feedback Events . | . . . . . Feedback Blocked . | . . . . . Robot Schematics Acquired . | . . . . . Robots Built . | . . . . . Authchips . | . . . . . Time . | . . . . . Total Robot Build Rating . | . . . . . Part Schematics Acquired 1 | . . . 1 . Parts Built . | . . . . . Authchips . | . . . . . Time . | . . . . . Total Part Build Rating . | . . . . . Parts Repaired 2 | . 1 . 1 . Time 58 | . 26 . 32 . Parts Recycled . | . . . . . Recycled Matter . | . . . . . Retrieved Matter . | . . . . . Retrieved Components . | . . . . . Parts Scanalyzed 1 | . . . 1 . Part Schematics Acquired 1 | . . . 1 . Parts Damaged . | . . . . . Bothacking | -11 -10 -10 -9 -9 ------------ Run | Scr Mat Min Mat Min Used RIF Installer . | . . . . . Robots Hacked . | . . . . . Non-combat . | . . . . . Combat . | . . . . . Robot Hacks Applied . | . . . . . Relay Couplers Released . | . . . . . Fabnet Peak Effective % . | . . . . . Robots Rewired . | . . . . . Allies Hacked . | . . . . . Hacks Repelled . | . . . . . Allies | -11 -10 -10 -9 -9 -------- Run | Scr Mat Min Mat Min Total Allies . | . . . . . Largest Group . | . . . . . Highest-Rated Group . | . . . . . Highest-Rated Ally . | . . . . . Total Orders . | . . . . . Ally Attacks . | . . . . . Total Damage . | . . . . . Kills . | . . . . . Allies Corrupted . | . . . . . Allies Melted . | . . . . . Intel | -11 -10 -10 -9 -9 ------- Run | Scr Mat Min Mat Min Robot Analysis Total 3 | . 2 . 1 . Derelict Logs Recovered 1 | . . 1 . . Drone Launches . | . . . . . Drone Recoveries . | . . . . . Exploration | -11 -10 -10 -9 -9 ------------- Run | Scr Mat Min Mat Min Turns Passed 5780 | 1398 1356 468 2497 61 Spaces Moved 2194 | 249 604 242 1093 6 Core 13 | 13 . . . . Treads 1047 | 236 160 242 403 6 Legs 1134 | . 444 . 690 . Wheels . | . . . . . Hover . | . . . . . Flight . | . . . . . Fastest Speed 50 | 50 120 160 160 160 Average Speed 173 | 154 176 160 178 160 Slowest Speed 260 | 160 260 160 190 160 Overloaded Moves . | . . . . . Propulsion Burnouts . | . . . . . Robots Hopped . | . . . . . Cave-ins Triggered . | . . . . . Exploration Rate (%) 51 | 37 93 46 76 6 Regions Visited 4 Branch Regions 2 Pre-discovered Areas 4 | . 1 1 2 . Known Exits Taken . | . . . . . Unknown Exits Taken 4 | 1 1 1 1 . Scrap Searched 1 | . . 1 . . Spaces Dug . | . . . . . Terrain Destroyed 72 | . . . 19 53 Melee . | . . . . . Projectile 1 | . . . . 1 AOE 71 | . . . 19 52 Terrain Rammed . | . . . . . Walls Destroyed . | . . . . . Machines Disabled . | . . . . . Actions | -11 -10 -10 -9 -9 --------- Run | Scr Mat Min Mat Min Total 3826 | 1250 791 290 1464 31 Wait 1328 | 988 95 25 220 . Move 2190 | 248 603 241 1092 6 Hop . | . . . . . Pick Up 34 | 3 20 2 9 . Fast Attach 22 | 6 5 1 10 . Attach 9 | . 2 . 2 5 Detach . | . . . . . Swap 27 | . 6 2 15 4 Drop 34 | . 9 1 24 . Fire 174 | 5 50 15 88 16 Melee . | . . . . . Ram . | . . . . . Kick 5 | . 1 . 4 . Crush 3 | . . 3 . . Escape Stasis . | . . . . . Rewire . | . . . . . Trap . | . . . . . Miscellaneous . | . . . . . Route ------- -11/Scrapyard -10/Materials (discovered 4 exits: *Mat x2 / [*Min x2]) -10/Mines -9/Materials (discovered 2 exits: [*Mat] / [*Min]) -9/Mines History --------- Turn | Location | Event 2 | -11/Scrapyard | Met Revision 17 9 | -11/Scrapyard | Discovered new exit (range 16) 1100 | -11/Scrapyard | Assembled infested the area 1399 | -11/Scrapyard | Entered Materials 1400 | -10/Materials | Build established: Mutant 1633 | -10/Materials | Core integrity fell below 50% 1793 | -10/Materials | Discovered new exit (range 13) 2030 | -10/Materials | Discovered new exit (range 7) 2115 | -10/Materials | Discovered new exit (range 7) 2212 | -10/Materials | Discovered new exit (range 14) 2649 | -10/Materials | Repaired Lgt. Treads 2694 | -10/Materials | Build established: Scavenger-Mutant 2755 | -10/Materials | Entered Mines 2802 | -10/Mines | A weapon hastily lodged in a ceiling crevice suddenly fell to the ground 2891 | -10/Mines | Learned location of Storage (-7) 2892 | -10/Mines | Learned Materials emergency access door positions 3038 | -10/Mines | Core integrity fell below 20% 3212 | -10/Mines | Discovered new exit (range 8) 3223 | -10/Mines | Entered Materials 3223 | -9/Materials | Evolved 2 slots: Propulsion x1, Utility x1 3968 | -9/Materials | Discovered new exit (range 12) 4455 | -9/Materials | Discovered new exit (range 16) 4482 | -9/Materials | Central database locked down 5052 | -9/Materials | Repaired Particle Cannon 5203 | -9/Materials | Build established: Mutant 5668 | -9/Materials | Build established: Scavenger-Mutant 5720 | -9/Materials | Entered Mines 5721 | -9/Mines | Assembled infested the area 5726 | -9/Mines | Assisted by a Guerilla fighting off Assembled 5751 | -9/Mines | Core integrity fell below 50% 5759 | -9/Mines | Destroyed 19 combat bots 5770 | -9/Mines | Core integrity fell below 20% 5781 | -9/Mines | Destroyed by D-53 Grenadier with Mini Grenade Launcher Last Messages --------------- 05769_ The unstable cave ceiling collapses. 05769_ Lgt. Treads destroyed. 05770_ Particle Cannon destroyed. 05771_ U-05 Engineer lays Concrete. 05771_ Particle Cannon destroyed. 05772_ U-05 Engineer lays Concrete. 05773_ S-10 Pest destroyed. 05773_ U-05 Engineer lays Concrete. 05773_ Imp. Ion Engine destroyed. 05773_ R-06 Scavenger collects Flight Unit. 05774_ U-05 Engineer lays Concrete. 05775_ Hrd. Light Armor Plating destroyed. 05776_ U-05 Engineer lays Concrete. 05776_ R-06 Scavenger collects Launcher Guidance Computer. 05777_ The unstable cave ceiling collapses. 05777_ U-05 Engineer lays Concrete. 05779_ D-53 Grenadier suffers critical hit (Burn). 05780_ U-05 Engineer lays Concrete. 05780_ R-06 Scavenger collects Lgt. Assault Rifle. 05781_ U-05 Engineer lays Concrete. Map ----- +----------------------------------------------------+ | | | | | | | | | | | | | | | | | | | | | | | | | | | | | ?????????????????????????????????????????????????? | | ?????????????????????????????????????????????????? | | ?????????????????????????????????????????????????? | | ?????????????????????????????????????????????????? | | ?????????????????????????????????????????????????? | | ???????????????????????####??????????????????????? | | ??????????????????????## ###????????????????????? | | ?????????????????????## ##???????????????????? | | ????????????????????## ##??? ##????????????? | | ????????????????????# # #????????????? | | ????????????????????# #????????????? | | ????????????????????# @ #????????????? | | ???????????????????# u #?????????????? | | ???????????????????## ##?????????????? | | ??????????????????# # ##??????????????? | | ??????????????????## #? ##???????????????? | | ??????????????????# #??#????????????????? | | ??????????????????### d% ! #???????????????????? | | ???????????????????# = =%%*#???????????????????? | | ???????????????????## *!]=%##???????????????????? | | ????????????????????# [ *%% #???????????????????? | | ????????????????????### # r%#???????????????????? | | ?????????????????????? "???????????????????? | | ??????????????????????### %???????????????????? | | ????????????????????????# ???????????????????? | | ????????????????????????? #???????????????????? | | ????????????????????????? ###???????????????????? | | ????????????????????????? ??????????????????????? | | ?????????????????????????????????????????????????? | | ?????????????????????????????????????????????????? | | ?????????????????????????????????????????????????? | | ?????????????????????????????????????????????????? | | ?????????????????????????????????????????????????? | | ?????????????????????????????????????????????????? | | ?????????????????????????????????????????????????? | | ?????????????????????????????????????????????????? | +----------------------------------------------------+ Best States ------------- Heat Dissipation 56 Energy Generation 14 Energy Capacity 280 Matter Stores 300 Matter Capacity 300 Sight Range 16 Terrain Scan Density 10 Armor Coverage 150 Evasion (%) 55 Recoil Reduction 3 Item Schematics ----------------- Cmb. Airjet | -9/Materials | Scanalyzed Robot Schematics ------------------ None Fabricated ------------ Nothing Alien Tech Used ----------------- None Achievements -------------- None Challenges ------------ None Game ------ Seed BlastIonTriangulator Manual? 0 Play Time 00:28:47 Cumulative 1479.2 hours Start 2022.05.17 @ 19:26:36 End 2022.05.17 @ 19:55:09 Sessions 1 Manual Loads 0 Difficulty Rogue Special Mode None Game No. 520 Rogue 520 Adventurer 0 Explorer 0 Win Type - Total 105 Types 22/12/43/6/1/2/17/1/1 Lore% 96 Gallery% 96 Achievement% 86 Wizard Run 0 Options --------- ASCII 0 Keyboard 0 Movement Numpad Keybinds 0 Fullscreen 1 Font 18/SmallcapsGlow Map View 76x50 Tactical HUD 1 Map Filters NONE Filters NONE Steam 1 RUN: ca50eabc-1806-40e3-9c9e-59ff4ab7149b